Cogmind - Beta 17 @@@ ROGUE MODE // 2026.07.12 @ 10:45:56 Player: Akl Result: Destroyed by X-67 Chaingunner with Heavy Machine Gun Performance ------------- Evolutions (3) 1500 Regions Visited (7) 1400 Robots Destroyed (44) 220 Value Destroyed (1031) 1031 Prototype IDs (0) 0 Alien Tech Used (0) 0 Bonus (959) 959 TOTAL SCORE: 5110 Bonus ------- Follower Combat Kills 475 Entered DSFs 500 Friendly Fire -16 Cogmind --------- Core Integrity 0/700 Matter 289/300 Energy 37/100 System Corruption 8% Temperature Cool (0) Movement Walking (130) Location -7/DSF Parts ------- > --- POWER (2) -------- (None) > --- PROPULSION (3) --- Improved Titanium Leg > --- UTILITY (5) ------ (None) > --- WEAPON (3) ------- (None) > --- INVENTORY (5) ---- Titanium Leg Flight Unit Faulty Improved VTOL Module Kinecellerator Datajack Peak State ------------ > --- POWER ------------ Light Nuclear Core Light Angular Momentum Engine > --- PROPULSION ------- Titanium Leg Titanium Leg Titanium Leg > --- UTILITY ---------- Weight Redist. System Actuator Array Actuator Array ECM Suite Light Armor Plating > --- WEAPON ----------- Datajack Katana Katana > --- INVENTORY -------- Flight Unit Improved VTOL Module Kinecellerator Datajack [Rating: 35] Favorites ----------- Power Light Ion Engine Engine Light Ion Engine Power Core Light Nuclear Core Propulsion Titanium Leg Leg Titanium Leg Wheel Wheel Hover Unit Airjet Flight Unit Flight Unit Utility Targeting Computer Device Actuator Array Storage Small Storage Unit Processor Targeting Computer Protection Light Armor Plating Weapon Light Assault Rifle Ballistic Gun Light Assault Rifle Launcher Grenade Launcher Slashing Weapon Katana Special Melee Weapon Datajack Build | -11 -10 -10 -9 -8 -8 -7 -7 ------- Run | Yrd Mat Min Mat Mat Sto Fac DSF Slots Evolved 6 | . . . 2 2 . 2 . Power 1 | . . . . 1 . . . Propulsion 1 | . . . 1 . . . . Utility 3 | . . . 1 1 . 1 . Weapon 1 | . . . . . . 1 . Parts Attached 52 | 7 1 9 3 10 15 . 7 Power 11 | 1 . 1 1 3 3 . 2 Engine 7 | 1 . 1 1 2 2 . . Core 4 | . . . . 1 1 . 2 Reactor . | . . . . . . . . Propulsion 17 | 2 . 4 . 3 3 . 5 Treads . | . . . . . . . . Leg 10 | . . . . 3 3 . 4 Wheel 4 | 2 . 2 . . . . . Hover 1 | . . . . . . . 1 Flight 2 | . . 2 . . . . . Utility 12 | 2 . 3 1 2 4 . . Device 6 | 1 . . 1 1 3 . . Storage 2 | 1 . 1 . . . . . Processor 3 | . . 2 . 1 . . . Hackware . | . . . . . . . . Protection 1 | . . . . . 1 . . Artifact . | . . . . . . . . Weapon 12 | 2 1 1 1 2 5 . . Energy Gun . | . . . . . . . . Energy Cannon . | . . . . . . . . Ballistic Gun 6 | 2 . 1 . 2 1 . . Ballistic Cannon . | . . . . . . . . Launcher 1 | . 1 . . . . . . Special Weapon . | . . . . . . . . Impact Weapon . | . . . . . . . . Slashing Weapon 2 | . . . . . 2 . . Piercing Weapon . | . . . . . . . . Special Melee Weapon 3 | . . . 1 . 2 . . Unidentified Prototypes . | . . . . . . . . Parts Lost 27 | . 1 2 2 4 2 . 16 Power 6 | . . . . 2 . . 4 Propulsion 7 | . . 2 . . 1 . 4 Utility 6 | . . . . 1 . . 5 Weapon 8 | . 1 . 2 1 1 . 3 Highest Loss Streak 15 | . 1 1 2 2 1 . 15 To Critical Strikes . | . . . . . . . . Average Backups 4 | 2 7 6 3 4 4 3 4 Power . | . 1 1 1 . . . . Propulsion 1 | . 2 2 . 1 1 2 2 Utility 1 | . 1 1 2 2 1 . 1 Weapon . | . 1 1 . . . . . Tool/Special . | . . . . . . . . Unused Backups 7 | . . 2 . 1 2 . 2 Power . | . . . . . . . . Propulsion 2 | . . . . . 1 . 1 Utility 3 | . . 1 . . 1 . 1 Weapon 2 | . . 1 . 1 . . . Tool/Special . | . . . . . . . . Average Slot Usage (%) 93 | . 99 98 76 90 98 99 82 Engine 11 | . 14 14 11 12 12 7 1 Core 3 | . . . . 3 4 7 7 Leg 15 | . . . . 23 26 23 16 Wheel 5 | . 28 16 . . . . . Flight 3 | . . 10 22 1 . . . Device 15 | . 14 8 . 8 21 29 26 Storage 2 | . 14 8 . . . . . Processor 11 | . . 10 22 24 10 . . Protection 2 | . . . . . 3 7 4 Ballistic Gun 14 | . 19 28 19 17 9 . . Slashing Weapon 4 | . . . . . 6 15 14 Special Melee Weapon 1 | . . . 1 . 1 7 4 Peak Build Rating 35 | 9 9 9 9 22 31 35 35 Average Rating 19 | 5 8 8 7 18 27 34 28 On Entrance 14 | . 9 9 8 7 18 31 35 Avg Prop Armor Cover (%) 10 | . . . . 5 . . 12 Naked Turns 4 | . . . . . . . 4 Heaviest Build 34 | 14 15 19 7 16 33 34 34 Greatest Support 57 | 20 20 20 8 57 57 57 57 Greatest Overweight (x) 1 | . . 1 . . . . 1 Average Overweight (x) . | . . . . . . . . Largest Inventory Capacity 10 | 8 8 10 5 5 5 5 5 Average Capacity 5 | 7 8 8 5 5 5 5 5 Most Carried 8 | 6 8 8 5 5 5 4 5 Average Carried 4 | 2 7 6 3 4 4 3 4 Final Capacity 8 | 8 8 5 5 5 5 5 5 Final Carried 8 | 5 8 3 4 5 5 4 5 Class Distribution -------------------- 53% | Mutant 17% | Scavenger-Mutant 9% | Gladiator 8% | Commander-Gladiator 6% | Scavenger-Gladiator 4% | Commander-Mutant Dominant Class ---------------- Mutant | -10/Materials Mutant | -10/Mines Mutant | -9/Materials Mutant | -8/Materials Scavenger-Mutant | -8/Storage Scavenger-Gladiator | -7/Factory Gladiator | -7/DSF Resources | -11 -10 -10 -9 -8 -8 -7 -7 ----------- Run | Yrd Mat Min Mat Mat Sto Fac DSF Matter Collected 1273 | 306 27 272 73 257 333 . 5 Remotely . | . . . . . . . . Salvage Created 1412 | 151 102 312 73 275 499 . . Parts 93 | 10 16 18 6 22 21 . . Haulers Intercepted . | . . . . . . . . Recyclers Shooed 1 | . . 1 . . . . . Parts Field Recycled . | . . . . . . . . Retrieved Matter . | . . . . . . . . Parts Self-Destructed . | . . . . . . . . Prevented . | . . . . . . . . Parts Restored . | . . . . . . . . Kills | -11 -10 -10 -9 -8 -8 -7 -7 ------- Run | Yrd Mat Min Mat Mat Sto Fac DSF Combat Hostiles Destroyed 32 | . 9 5 1 8 9 . . Melee 2 | . . . . . 2 . . Guns 24 | . 3 5 1 8 7 . . AOE 6 | . 6 . . . . . . Classes Destroyed 10 | 2 2 2 . 1 3 . . Worker 1 | . . 1 . . . . . Tunneler 5 | 4 . 1 . . . . . Recycler 3 | 1 . 2 . . . . . Operator 1 | . . . . . 1 . . Watcher 2 | . 1 . 1 . . . . Swarmer 16 | . 9 3 . 4 . . . Grunt 6 | . . . . 1 5 . . Brawler 2 | . . . . . 2 . . Duelist 1 | . . . . . 1 . . Sentry 7 | . . 2 1 3 1 . . Best Kill Streak 7 | 5 7 4 1 4 6 . . Combat Bots Only 6 | . 3 3 1 4 6 . . Max Kills in Single Turn 2 | 1 2 1 1 1 1 . . Gunslinging . | . . . . . . . . Exploded 2 | . 2 . . . . . . Melee 1 | . . . . . 1 . . Uniques/NPCs Destroyed . | . . . . . . . . Combat | -11 -10 -10 -9 -8 -8 -7 -7 -------- Run | Yrd Mat Min Mat Mat Sto Fac DSF Hostile Shots Fired 337 | . 26 31 26 55 65 . 134 Missed 99 | . 9 7 9 20 14 . 40 Hits 238 | . 17 24 17 35 51 . 94 Melee 10 | . . . . . 2 . 8 Projectile 228 | . 17 24 17 35 49 . 86 Critical Strikes 9 | . . . 2 1 1 . 5 Damage Taken 3832 | . 158 240 228 473 882 . 1851 Core 1013 | . 14 29 44 52 163 . 711 Absorbed by Shields . | . . . . . . . . Core Remaining (%) 82 | 100 . 82 89 . 60 . . Volleys Fired 107 | 9 14 21 12 21 30 . . Largest 2 | 2 2 2 2 2 2 . . Hottest 46 | 40 40 43 43 46 46 . . Shots Fired 200 | 18 19 42 22 40 59 . . Gun 191 | 18 10 42 22 40 59 . . Cannon . | . . . . . . . . Launcher 9 | . 9 . . . . . . Special . | . . . . . . . . Kinetic 191 | 18 10 42 22 40 59 . . Thermal . | . . . . . . . . Explosive 9 | . 9 . . . . . . Electromagnetic . | . . . . . . . . Robot Hit Streak 23 | 9 11 14 8 23 15 . . Robot Miss Streak 3 | 1 2 3 1 2 3 . . Penetration Max . | . . . . . . . . Secondary Targets 3 | . . 1 . 1 1 . . Max Gunslinging Chain 1 | . . 1 . 1 1 . . Shots Hit Robots 163 | 12 7 31 17 32 58 . 6 Core Hits 87 | 6 17 14 6 15 27 . 2 Critical Kills . | . . . . . . . . Critical Parts Destroyed . | . . . . . . . . Critical Strikes 3 | . . . . . 1 . 2 Sever 3 | . . . . . 1 . 2 Melee Attacks 30 | . . . 3 . 18 . 9 Impact . | . . . . . . . . Slashing 18 | . . . . . 9 . 9 Piercing . | . . . . . . . . Sneak Attacks 5 | . . . . . 5 . . Combat Hostiles . | . . . . . . . . Follow-up Attacks 4 | . . . . . 3 . 1 Damage Inflicted 2634 | 134 600 352 197 418 777 . 156 Guns 1705 | 134 52 352 197 418 552 . . Cannons . | . . . . . . . . Explosions 548 | . 548 . . . . . . Melee 376 | . . . . . 225 . 151 Ramming 5 | . . . . . . . 5 Kinetic 1705 | 134 52 352 197 418 552 . . Thermal . | . . . . . . . . Explosive 284 | . 284 . . . . . . Electromagnetic 264 | . 264 . . . . . . Impact . | . . . . . . . . Slashing 376 | . . . . . 225 . 151 Piercing . | . . . . . . . . Highest Corruption 8 | . . . 1 . . . 8 Average Corruption 1 | . . . 1 . . . 5 Corruption Purged . | . . . . . . . . Corruption Blocked . | . . . . . . . . Overload Shots . | . . . . . . . . Overflow Damage 20 | . 15 . . . 5 . . Projectiles . | . . . . . . . . Explosions 15 | . 15 . . . . . . Melee 5 | . . . . . 5 . . Knockbacks . | . . . . . . . . Impact . | . . . . . . . . Kinetic . | . . . . . . . . Secondary . | . . . . . . . . Self-Inflicted Damage 23 | . 23 . . . . . . Shots 1 | . 1 . . . . . . Rammed . | . . . . . . . . Targets Rammed 2 | . . . . . . . 2 Kicked 2 | . . . . . . . 2 Crushed . | . . . . . . . . Highest Temperature 33 | . . 12 33 7 18 . . Average Temperature 6 | . . 7 9 4 4 . . Received Heat Transfer 1065 | . . 27 120 198 405 . 315 Siege Activations . | . . . . . . . . Martial Activations . | . . . . . . . . Shielding Activations . | . . . . . . . . Robots Disrupted . | . . . . . . . . Combat Hostiles . | . . . . . . . . Robots Corrupted . | . . . . . . . . Combat Hostiles . | . . . . . . . . Parts Fried . | . . . . . . . . Impact Corruptions . | . . . . . . . . Robots Melted . | . . . . . . . . Combat Hostiles . | . . . . . . . . Parts Melted . | . . . . . . . . Heat Transferred . | . . . . . . . . Parts Sabotaged . | . . . . . . . . Parts Stolen . | . . . . . . . . Parts Stripped . | . . . . . . . . Power Chain Reactions 1 | . 1 . . . . . . Alert | -11 -10 -10 -9 -8 -8 -7 -7 ------- Run | Yrd Mat Min Mat Mat Sto Fac DSF Maximum Alert Level 1 | . 1 . . . 1 . . Low Security (%) 85 | 100 54 100 100 100 67 100 100 Level 1 14 | . 45 . . . 32 . . Level 2 . | . . . . . . . . Level 3 . | . . . . . . . . Level 4 . | . . . . . . . . Level 5 . | . . . . . . . . High Security . | . . . . . . . . Max Security . | . . . . . . . . Peak Influence 367 | 10 317 159 57 120 367 141 74 Initial 141 | . 3 119 50 . 46 141 74 Average 104 | 3 149 132 27 72 160 123 26 Influence Increases 1589 | 25 377 130 51 270 716 5 15 Destroy 0b10 Robot/C 900 | . 180 100 20 160 440 . . Destroy 0b10 Robot/NC 65 | 25 5 20 5 . 10 . . Destroy Leader 204 | . 32 10 12 50 100 . . Allied During Kill 158 | . . . . . 158 . . Successful Hack 26 | . . . 14 . 7 5 . Disable Machine 75 | . 60 . . 15 . . . Destroy Structure 26 | . 25 . . . 1 . . Lose Combat Pursuer 135 | . 75 . . 45 . . 15 Influence Decreases 1589 | 20 75 308 179 161 514 211 121 Entered New Map 537 | . 2 188 79 1 64 171 32 Time Decay 653 | 20 63 100 80 120 230 40 . Lost Part 159 | . 10 20 20 40 20 . 49 Lost Ally 240 | . . . . . 200 . 40 Squads Dispatched 11 | . 2 . 1 2 4 . 2 Investigation . | . . . . . . . . Extermination . | . . . . . . . . Reinforcement 7 | . 2 . 1 . 2 . 2 Assault 2 | . . . . . 2 . . Garrison 2 | . . . . 2 . . . Intercept . | . . . . . . . . Searches Triggered . | . . . . . . . . Construction Impeded . | . . . . . . . . Haulers Reinforced . | . . . . . . . . Active Scanning Responses . | . . . . . . . . Cargo Convoy Interrupts . | . . . . . . . . Stealth | -11 -10 -10 -9 -8 -8 -7 -7 --------- Run | Yrd Mat Min Mat Mat Sto Fac DSF Distress Signals 4 | . 1 . 1 . 2 . . Communications Jammed . | . . . . . . . . Distress Signals . | . . . . . . . . Times Spotted 78 | . 14 5 8 13 28 . 10 Peak Tracking Total 8 | . 8 3 6 6 5 . 8 Tactical Retreats 6 | . 2 . . 1 1 . 2 ECM-based Alert Blocks 2 | . . . . . 1 . 1 Traps | -11 -10 -10 -9 -8 -8 -7 -7 ------- Run | Yrd Mat Min Mat Mat Sto Fac DSF Traps Triggered 3 | . . . 1 . 1 . 1 Indirectly . | . . . . . . . . Trap Hack Attempts . | . . . . . . . . Triggered . | . . . . . . . . Disarmed . | . . . . . . . . Reprogrammed . | . . . . . . . . Reused . | . . . . . . . . Traps Extracted . | . . . . . . . . Installed . | . . . . . . . . Triggered . | . . . . . . . . Machines | -11 -10 -10 -9 -8 -8 -7 -7 ---------- Run | Yrd Mat Min Mat Mat Sto Fac DSF Machines Disabled 5 | . 4 . . 1 . . . Max in Single Turn 1 | . 1 . . 1 . . . Machines Repaired . | . . . . . . . . Machines Dismantled . | . . . . . . . . Machines Sabotaged . | . . . . . . . . Overloaded Fab Kills . | . . . . . . . . Hacking | -11 -10 -10 -9 -8 -8 -7 -7 --------- Run | Yrd Mat Min Mat Mat Sto Fac DSF Machines Accessed 6 | . 1 . 2 . 2 1 . Terminals 6 | . 1 . 2 . 2 1 . Fabricators . | . . . . . . . . Repair Stations . | . . . . . . . . Recycling Units . | . . . . . . . . Scanalyzers . | . . . . . . . . Garrison Access . | . . . . . . . . Total Hacks 18 | . 3 . 6 . 6 3 . Successful 8 | . 2 . 4 . 1 1 . Failed 10 | . 1 . 2 . 5 2 . Catastrophic 1 | . . . . . 1 . . Database Lockouts . | . . . . . . . . Manual . | . . . . . . . . Terminals 18 | . 3 . 6 . 6 3 . Fabricators . | . . . . . . . . Repair Stations . | . . . . . . . . Recycling Units . | . . . . . . . . Scanalyzers . | . . . . . . . . Garrison Access . | . . . . . . . . Terminal Hacks 8 | . 2 . 4 . 1 1 . Record 4 | . . . 4 . . . . Open Door 1 | . . . . . 1 . . Open DSF 1 | . . . . . . 1 . Dispatch Records 1 | . 1 . . . . . . Hauler Manifests 1 | . 1 . . . . . . Fabricator Hacks . | . . . . . . . . Repair Station Hacks . | . . . . . . . . Recycling Unit Hacks . | . . . . . . . . Scanalyzer . | . . . . . . . . Garrison Access Hacks . | . . . . . . . . Unauthorized Hacks . | . . . . . . . . Terminals . | . . . . . . . . Fabricators . | . . . . . . . . Repair Stations . | . . . . . . . . Recycling Units . | . . . . . . . . Scanalyzers . | . . . . . . . . Garrison Access . | . . . . . . . . Data Cores Recovered 1 | . . . . . 1 . . Used . | . . . . . . . . Hacking Detections 4 | . 1 . 2 . 1 . . Full Trace Events . | . . . . . . . . Feedback Events . | . . . . . . . . Feedback Blocked . | . . . . . . . . Robot Schematics Acquired . | . . . . . . . . Robots Built . | . . . . . . . . Authchips . | . . . . . . . . Time . | . . . . . . . . Total Robot Build Rating . | . . . . . . . . Part Schematics Acquired . | . . . . . . . . Parts Built . | . . . . . . . . Authchips . | . . . . . . . . Time . | . . . . . . . . Total Part Build Rating . | . . . . . . . . Part Studies Acquired . | . . . . . . . . Parts Repaired . | . . . . . . . . Time . | . . . . . . . . Parts Recycled . | . . . . . . . . Recycled Matter . | . . . . . . . . Retrieved Matter . | . . . . . . . . Retrieved Components . | . . . . . . . . Parts Scanalyzed . | . . . . . . . . Part Schematics Acquired . | . . . . . . . . Parts Damaged . | . . . . . . . . Bothacking | -11 -10 -10 -9 -8 -8 -7 -7 ------------ Run | Yrd Mat Min Mat Mat Sto Fac DSF Used RIF Installer . | . . . . . . . . Robots Hacked 3 | . . . 1 . 2 . . Non-combat 2 | . . . . . 2 . . Combat 1 | . . . 1 . . . . Robot Hacks Applied 4 | . . . 1 . 3 . . parse_system 2 | . . . 1 . 1 . . no_distress 1 | . . . . . 1 . . check_alert 1 | . . . . . 1 . . Relay Couplers Released . | . . . . . . . . Fabnet Peak Effective % . | . . . . . . . . Robots Rewired . | . . . . . . . . Allies Hacked . | . . . . . . . . Hacks Repelled . | . . . . . . . . Allies | -11 -10 -10 -9 -8 -8 -7 -7 -------- Run | Yrd Mat Min Mat Mat Sto Fac DSF Total Allies 12 | . . . . . 12 . . Largest Group 10 | . . . . . 10 2 2 Highest-Rated Group 173 | . . . . . 173 45 45 Highest-Rated Ally 31 | . . . . . 31 29 29 Total Orders . | . . . . . . . . Ally Attacks 96 | . . . . . 92 . 4 Total Damage 1349 | . . . . . 1276 . 73 Kills 14 | . . . . . 14 . . Allies Corrupted . | . . . . . . . . Allies Melted . | . . . . . . . . Intel | -11 -10 -10 -9 -8 -8 -7 -7 ------- Run | Yrd Mat Min Mat Mat Sto Fac DSF Active Infowar (turns) 973 | 4 181 136 2 . 491 87 72 Terrain 321 | 4 181 136 . . . . . ECM 652 | . . . 2 . 491 87 72 Robot Analysis Total . | . . . . . . . . Derelict Logs Recovered 1 | . . 1 . . . . . Drone Launches . | . . . . . . . . Drone Recoveries . | . . . . . . . . Exploration | -11 -10 -10 -9 -8 -8 -7 -7 ------------- Run | Yrd Mat Min Mat Mat Sto Fac DSF Turns Passed 1686 | 90 181 214 164 296 491 87 163 Spaces Moved 1273 | 62 179 238 288 167 211 65 63 Core 7 | 3 . . . . . . 4 Treads . | . . . . . . . . Legs 486 | . . . . 152 211 65 58 Wheels 347 | 59 179 109 . . . . . Hover 1 | . . . . . . . 1 Flight 432 | . . 129 288 15 . . . Fastest Speed 37 | 50 80 37 37 37 130 130 50 Average Speed 85 | 78 80 56 37 121 130 130 153 Slowest Speed 200 | 80 80 95 37 130 130 130 200 Overloaded Moves . | . . . . . . . . Propulsion Burnouts . | . . . . . . . . Robots Hopped 1 | . . . 1 . . . . Potential Cave-ins . | . . . . . . . . Cave-ins Triggered . | . . . . . . . . Exploration Rate (%) 32 | 3 43 58 30 14 46 3 62 Regions Visited 7 Branch Regions 2 Pre-discovered Areas . | . . . . . . . . Known Exits Taken 2 | . . . . 1 . 1 . Unknown Exits Taken 5 | 1 1 1 1 . 1 . . Scrap Searched 1 | . . 1 . . . . . Spaces Dug . | . . . . . . . . Terrain Destroyed 23 | . 23 . . . . . . Melee . | . . . . . . . . Projectile . | . . . . . . . . AOE 23 | . 23 . . . . . . Terrain Rammed . | . . . . . . . . Walls Destroyed . | . . . . . . . . Machines Disabled . | . . . . . . . . Actions | -11 -10 -10 -9 -8 -8 -7 -7 --------- Run | Yrd Mat Min Mat Mat Sto Fac DSF Total 1645 | 83 198 281 320 226 356 67 114 Wait 110 | . . 2 9 8 62 . 29 Move 1264 | 61 178 237 285 166 210 64 63 Hop 1 | . . . 1 . . . . Pick Up 28 | 6 4 2 2 5 8 1 . Fast Attach 23 | 6 . 1 1 6 3 . 6 Attach 19 | 1 1 5 1 6 3 2 . Detach 7 | . . 1 1 5 . . . Swap 29 | . 1 4 4 3 16 . 1 Drop 26 | . . 8 1 6 9 . 2 Fire 107 | 9 14 21 12 21 30 . . Melee 26 | . . . 3 . 15 . 8 Ram . | . . . . . . . . Kick 2 | . . . . . . . 2 Crush . | . . . . . . . . Escape Stasis 3 | . . . . . . . 3 Rewire . | . . . . . . . . Trap . | . . . . . . . . Miscellaneous . | . . . . . . . . Route ------- -11/Scrapyard -10/Materials -10/Mines -9/Materials -8/Materials (discovered 2 exits: *Sto x2) -8/Storage -7/Factory -7/DSF (discovered 1 exit: [*Fac]) History --------- Turn | Location | Event 20 | -11/Scrapyard | Discovered new exit (range 16) 91 | -11/Scrapyard | Entered Materials 259 | -10/Materials | Discovered new exit (range 12) 272 | -10/Materials | Entered Mines 304 | -10/Mines | Build established: Mutant 443 | -10/Mines | Discovered new exit (range 14) 486 | -10/Mines | Entered Materials 486 | -9/Materials | Evolved 2 slots: Propulsion x1, Utility x1 648 | -9/Materials | Discovered new exit (range 5) 650 | -9/Materials | Entered another Materials area 650 | -8/Materials | Evolved 2 slots: Power x1, Utility x1 651 | -8/Materials | Identified exit to Storage 765 | -8/Materials | Garrison activated, responded to threat 914 | -8/Materials | Discovered exit to Storage (range 15) 946 | -8/Materials | Entered Storage 1033 | -8/Storage | Met a pair of Derelict thieves 1245 | -8/Storage | Assisted by bots powering up and referring to "LRC-V3" 1381 | -8/Storage | Discovered new exit (range 16) 1437 | -8/Storage | Entered Factory 1437 | -7/Factory | Accompanied by 2 allies 1437 | -7/Factory | Evolved 2 slots: Utility x1, Weapon x1 1452 | -7/Factory | Lost 5 allies 1524 | -7/Factory | Identified exit to DSF 1524 | -7/Factory | Entered DSF 1524 | -7/DSF | Accompanied by 2 allies 1571 | -7/DSF | Additional patrols routed to DSF 1639 | -7/DSF | Discovered new exit (range 13) 1677 | -7/DSF | Core integrity fell below 50% 1682 | -7/DSF | Core integrity fell below 20% 1687 | -7/DSF | Destroyed by X-67 Chaingunner with Heavy Machine Gun Last Messages --------------- 01665_ G-47 Trooper destroyed. 01665_ Slug penetrates Wall. 01667_ Weight Redist. System destroyed. 01667_ System corrupted by crushing effect (+3). 01670_ Acquired 5 matter. 01670_ Imp. Titanium Leg destroyed. 01673_ Actuator Array destroyed. 01673_ Imp. Titanium Leg destroyed. 01675_ Actuator Array destroyed. 01676_ Katana destroyed. 01676_ System corrupted by crushing effect (+4). 01676_ System corrupted by crushing effect (+1). 01679_ Acquired VSS Leg. 01680_ G-47 Trooper suffers critical hit (Burn). 01680_ Kicked G-47 Trooper. 01681_ Penetrated by Slug. 01681_ Kicked G-47 Trooper. 01682_ Knocked back. 01682_ VSS Leg destroyed. 01683_ Acquired Imp. Titanium Leg. Map ----- +----------------------------------------------------+ | | | | | | | | | | | | | | | | | | | | | | | | | ????????????????????????????????????? | | ????????????????????????????????????? | | ????????????????????????????????????? | | ????????????????????????????????????? | | ????????????????????????????????????? | | ?????????????????????????"??????????? | | ???????????????????????##"###???????? | | ???????????????????????#"""""#??????? | | ???????????????????????#"""""#??????? | | ??????????????????????? <""##?????? | | ???????????????????????? %"""??????? | | ???????????????????????? ""???????? | | ????????????????????????# #????????? | | ??????????????????????###@ ##???????? | | ??????????????????????#== =#???????? | | ??????????????????????#= %=#???????? | | ??????????????????????#;bgx##???????? | | ??????????????????????#= !=#???????? | | ??????????????????????#==g =#???????? | | ??????????????????????#=x = #???????? | | ???????????????????######Hx;##??????? | | ???????????????#!??# ?# % #??????? | | ????????????? ##!!!# ## #??????? | | ????????? **#??????? | | ????????? *##?????? | | ????????? *;#?????? | | ????????? ##!!!#!!!## %##?????? | | ?????????# #?#!??#!!!?# %#??????? | | ???????### ###???###### ###??????? | | ????????!! ==???????# #???????? | | ????????!! ==???????# #???????? | | ?????????! =????????# #???????? | | ???????### ###??????### ##???????? | | ???????#== #??????#== =#???????? | | ???????#== #??????#== =#???????? | | ########== ########## ##???????? | | # # #?#= #?# #==### ###??????? | | # # ###% ### #==## ""##?????? | +----------------------------------------------------+ Best States ------------- Heat Dissipation 50 Energy Generation 27 Energy Capacity 325 Matter Stores 300 Matter Capacity 300 Sight Range 16 Terrain Scan Range 16 Terrain Scan Density 10 ECM Strength 1 Additional Mass Support 6 Armor Coverage 150 Evasion (%) 62 Targeting Accuracy 15 Item Schematics ----------------- None Robot Schematics ------------------ None Fabricated ------------ Nothing Repaired ---------- Nothing Studied --------- None Alien Tech Used ----------------- None Achievements -------------- None Challenges ------------ None Game ------ Seed HackingArmorAxe Manual? 0 Play Time 00:37:51 Cumulative 11.5 hours Start 2026.07.12 @ 10:09:44 End 2026.07.12 @ 10:45:56 Sessions 1 Manual Loads 0 Difficulty Rogue Special Mode None Game No. 24 Rogue 24 Adventurer 0 Explorer 0 Win Type - Total 0 Types 0/0/0/0/0/0/0/0/0/0 Lore% 10 Gallery% 12 Achievement% 11 Wizard Run 0 Options --------- Layout 1 ASCII 0 Keyboard 0 Movement Mouse Keybinds 0 Fullscreen 1 Font 24/Smallcaps Map View 50x35 Zoom Use 0% Tactical HUD 1 Map Filters NONE Filters NONE Steam 1 RUN: 015614d3-9b31-4f6b-8f1c-a38515374ffb